fUST/lending_fUST_20251011
["ID","MTS","AMOUNT","RATE_DAILY","PERIOD"]
[390817117,1760170284146,-1302.4,0.00027397,9]
[390817118,1760170284156,-500.0,0.00027397,9]
[390817119,1760170284166,-1302.4,0.00027397,9]
[390817120,1760170284177,-500.0,0.00027397,9]
[390817121,1760170284187,-1302.4,0.00027397,9]
[390817122,1760170284197,-500.0,0.00027397,9]
[390817123,1760170284208,-1302.4,0.00027397,9]
[390817124,1760170284220,-500.0,0.00027397,9]
[390817125,1760170284230,-1302.4,0.00027397,9]
[390817126,1760170284241,-500.0,0.00027397,9]
[390817127,1760170284250,-1302.4,0.00027397,9]
[390817128,1760170284261,-382.9108365,0.00027397,9]
[390817129,1760170284276,-1302.4,0.00027397,9]
[390817130,1760170284297,-1302.4,0.00027397,9]
[390817131,1760170284315,-1302.4,0.00027397,9]
[390817132,1760170284326,-1302.4,0.00027397,9]
[390817133,1760170284338,-1302.4,0.00027397,9]
[390817134,1760170284361,-1302.4,0.00027397,9]
[390817135,1760170284375,-500.0,0.00027397,9]
[390817136,1760170284387,-1302.4,0.00027397,9]
[390817137,1760170284396,-500.0,0.00027397,9]
[390817138,1760170284407,-1302.4,0.00027397,9]
[390817139,1760170284417,-500.0,0.00027397,9]
[390817140,1760170284428,-1302.4,0.00027397,9]
[390817141,1760170284438,-500.0,0.00027397,9]
[390817142,1760170284448,-1302.4,0.00027397,9]
[390817143,1760170284458,-243.24,0.00027397,9]
[390817144,1760170284470,-1302.4,0.00027397,9]
[390817145,1760170284480,-3771.87,0.00027397,9]
[390817146,1760170284490,-500.0,0.00027397,9]
[390817147,1760170284500,-1302.4,0.00027397,9]
[390817148,1760170284511,-167.36723012,0.00027397,9]
[390817149,1760170284523,-292.46,0.00027397,9]
[390817150,1760170284533,-3771.87,0.00027397,9]
[390817151,1760170284543,-1302.4,0.00027397,9]
[390817152,1760170284552,-3771.87,0.00027397,9]
[390817153,1760170284561,-1302.4,0.00027397,9]
[390817154,1760170284571,-3771.87,0.00027397,9]
[390817155,1760170284580,-1302.4,0.00027397,9]
[390817156,1760170284590,-1302.4,0.00027397,9]
[390817157,1760170284599,-3771.87,0.00027397,9]
[390817158,1760170284608,-1302.4,0.00027397,9]
[390817159,1760170284617,-3772.07751587,0.00027397,9]
[390817160,1760170284627,-1302.55278352,0.00027397,9]
[390817161,1760170284636,-5476.07,0.00027397,9]
[390817162,1760170284646,-500.0,0.00027397,9]
[390817163,1760170284655,-5476.07,0.00027397,9]
[390817164,1760170284665,-500.0,0.00027397,9]
[390817165,1760170284675,-5476.07,0.00027397,9]
[390817166,1760170284684,-500.0,0.00027397,9]
[390817167,1760170284694,-5476.07,0.00027397,9]
[390817168,1760170284704,-500.0,0.00027397,9]
[390817169,1760170284713,-5476.07,0.00027397,9]
[390817170,1760170284724,-631.30856977,0.00027397,9]
[390817171,1760170284734,-5476.07,0.00027397,9]
[390817172,1760170284744,-5476.07,0.00027397,9]
[390817173,1760170284753,-5476.07,0.00027397,9]
[390817174,1760170284763,-5476.07,0.00027397,9]
[390817175,1760170284772,-5476.07,0.00027397,9]
[390817176,1760170284781,-5476.07,0.00027397,9]
[390817177,1760170284791,-5476.07,0.00027397,9]
[390817178,1760170284800,-500.0,0.00027397,9]
[390817179,1760170284809,-500.0,0.00027397,9]
[390817180,1760170284818,-5476.07,0.00027397,9]
[390817181,1760170284828,-500.0,0.00027397,9]
[390817182,1760170284837,-5476.07,0.00027397,9]
[390817183,1760170284847,-500.0,0.00027397,9]
[390817184,1760170284856,-5476.07,0.00027397,9]
[390817185,1760170284865,-500.0,0.00027397,9]
[390817186,1760170284874,-5476.07,0.00027397,9]
[390817187,1760170284884,-500.0,0.00027397,9]
[390817188,1760170284893,-5476.07,0.00027397,9]
[390817189,1760170284903,-500.0,0.00027397,9]
[390817190,1760170284912,-500.0,0.00027397,9]
[390817191,1760170284921,-5476.07,0.00027397,9]
[390817192,1760170284931,-500.0,0.00027397,9]
[390817193,1760170284940,-500.0,0.00027397,9]
[390817194,1760170284950,-5476.07,0.00027397,9]
[390817195,1760170284959,-500.0,0.00027397,9]
[390817196,1760170284970,-500.0,0.00027397,9]
[390817197,1760170284980,-5476.07,0.00027397,9]
[390817198,1760170284990,-500.0,0.00027397,9]
[390817199,1760170284999,-1774.72,0.00027397,9]
[390817200,1760170285009,-500.0,0.00027397,9]
[390817201,1760170285019,-5476.07,0.00027397,9]
[390817202,1760170285028,-500.0,0.00027397,9]
[390817203,1760170285038,-1774.72,0.00027397,9]
[390817204,1760170285056,-500.0,0.00027397,9]
[390817205,1760170285069,-500.0,0.00027397,9]
[390817206,1760170285079,-5476.07,0.00027397,9]
[390817207,1760170285088,-1774.72,0.00027397,9]
[390817208,1760170285098,-500.0,0.00027397,9]
[390817209,1760170285107,-184.96598251,0.00027397,9]
[390817210,1760170285118,-5476.07,0.00027397,9]
[390817211,1760170285129,-1774.72,0.00027397,9]
[390817212,1760170285140,-500.0,0.00027397,9]
[390817213,1760170285150,-501.95769077,0.00027397,9]
[390817214,1760170285160,-5476.07321278,0.00027397,9]
[390817215,1760170285171,-1774.72,0.00027397,9]
[390817216,1760170285180,-1774.72,0.00027397,9]
[390817217,1760170285190,-1774.72,0.00027397,9]
[390817218,1760170285200,-1774.72,0.00027397,9]
[390817219,1760170285211,-1774.72,0.00027397,9]
[390817220,1760170285224,-1358.59,0.00027397,9]
[390817221,1760170285233,-1774.72,0.00027397,9]
[390817222,1760170285243,-1774.72,0.00027397,9]
[390817223,1760170285253,-1358.59,0.00027397,9]
[390817224,1760170285263,-1774.72,0.00027397,9]
[390817225,1760170285273,-1358.59,0.00027397,9]
[390817226,1760170285283,-500.0,0.00027397,9]
[390817227,1760170285292,-1774.72,0.00027397,9]
[390817228,1760170285302,-1358.59,0.00027397,9]
[390817229,1760170285312,-1358.59,0.00027397,9]
[390817230,1760170285322,-1774.72,0.00027397,9]
[390817231,1760170285332,-1358.59,0.00027397,9]
[390817232,1760170285341,-1774.72,0.00027397,9]
[390817233,1760170285351,-1358.59,0.00027397,9]
[390817234,1760170285360,-1774.72,0.00027397,9]
[390817235,1760170285370,-1358.59,0.00027397,9]
[390817236,1760170285379,-1774.72,0.00027397,9]
[390817237,1760170285389,-1358.59,0.00027397,9]
[390817238,1760170285399,-1774.72,0.00027397,9]
[390817239,1760170285408,-1358.59,0.00027397,9]
[390817240,1760170285417,-1774.72,0.00027397,9]
[390817241,1760170285428,-500.0,0.00027397,9]
[390817242,1760170285438,-1358.59,0.00027397,9]
[390817243,1760170285580,-1774.72,0.00027397,9]
[390817244,1760170285590,-500.0,0.00027397,9]
[390817245,1760170285599,-1254.67,0.00027397,9]
[390817246,1760170285608,-500.0,0.00027397,9]
[390817247,1760170285617,-1358.59,0.00027397,9]
[390817248,1760170285626,-1774.72,0.00027397,9]
[390817249,1760170285635,-500.0,0.00027397,9]
[390817250,1760170285644,-1254.67,0.00027397,9]
[390817251,1760170285654,-500.0,0.00027397,9]
[390817252,1760170285663,-1358.59,0.00027397,9]
[390817253,1760170285673,-1774.72,0.00027397,9]
[390817254,1760170285682,-1254.67,0.00027397,9]
[390817255,1760170285692,-500.0,0.00027397,9]
[390817256,1760170285701,-1358.59,0.00027397,9]
[390817257,1760170285711,-296.36,0.00027397,9]
[390817258,1760170285723,-1774.72,0.00027397,9]
[390817259,1760170285732,-1254.67,0.00027397,9]
[390817260,1760170285742,-1358.59,0.00027397,9]
[390817261,1760170285751,-1774.82872714,0.00027397,9]
[390817262,1760170285760,-500.0,0.00027397,9]
[390817263,1760170285770,-1254.67,0.00027397,9]
[390817264,1760170285780,-1358.59,0.00027397,9]
[390817265,1760170285790,-500.0,0.00027397,9]
[390817266,1760170285800,-1254.67,0.00027397,9]
[390817267,1760170285809,-1358.59,0.00027397,9]
[390817268,1760170285818,-500.0,0.00027397,9]
[390817269,1760170285828,-1254.67,0.00027397,9]
[390817270,1760170285837,-1358.59,0.00027397,9]
[390817271,1760170285847,-1254.67,0.00027397,9]
[390817272,1760170285856,-1358.59,0.00027397,9]
[390817273,1760170285866,-500.0,0.00027397,9]
[390817274,1760170285875,-1358.59,0.00027397,9]
[390817275,1760170285885,-1254.67,0.00027397,9]
[390817276,1760170285895,-500.0,0.00027397,9]
[390817277,1760170285905,-1358.59,0.00027397,9]
[390817278,1760170285915,-1254.67,0.00027397,9]
[390817279,1760170285925,-500.0,0.00027397,9]
[390817280,1760170285935,-1254.67,0.00027397,9]
[390817281,1760170285945,-500.0,0.00027397,9]
[390817282,1760170285954,-1358.59,0.00027397,9]
[390817283,1760170285964,-1808.33,0.00027397,9]
[390817284,1760170285980,-500.0,0.00027397,9]
[390817285,1760170285989,-1254.67,0.00027397,9]
[390817286,1760170285999,-1358.59,0.00027397,9]
[390817287,1760170286009,-500.0,0.00027397,9]
[390817288,1760170286018,-1808.33,0.00027397,9]
[390817289,1760170286027,-500.0,0.00027397,9]
[390817290,1760170286037,-1254.67,0.00027397,9]
[390817291,1760170286046,-1358.65862826,0.00027397,9]
[390817292,1760170286056,-214.69001178,0.00027397,9]
[390817293,1760170286067,-1808.33,0.00027397,9]
[390817294,1760170286077,-500.0,0.00027397,9]
[390817295,1760170286086,-500.0,0.00027397,9]
[390817296,1760170286095,-1254.67,0.00027397,9]
[390817297,1760170286105,-876.529634,0.00027397,7]
[390817298,1760170286114,-500.0,0.00027397,9]
[390817299,1760170286125,-1808.33,0.00027397,9]
[390817300,1760170286138,-500.0,0.00027397,9]
[390817301,1760170286147,-1254.67,0.00027397,9]
[390817302,1760170286156,-876.529634,0.00027397,7]
[390817303,1760170286167,-500.0,0.00027397,9]
[390817304,1760170286176,-500.0,0.00027397,9]
[390817305,1760170286185,-1808.33,0.00027397,9]
[390817306,1760170286195,-166.15868282,0.00027397,2]
[390817307,1760170286205,-150.0,0.00027397,5]
[390817308,1760170286215,-160.0,0.000274,30]
[390817309,1760170286229,-151.0,0.000274,18]
[390817310,1760170286238,-151.0,0.000274,14]
[390817311,1760170286248,-298.08050243,0.000274,30]
[390817312,1760170286257,-308.220168,0.000274,9]
[390817313,1760170286267,-221.999969,0.000274,9]
[390817314,1760170286277,-2609.37557469,0.000274,3]
[390817315,1760170286287,-6012.61,0.000274,2]
[390817316,1760170286311,-12742.21,0.000274,2]
[390817317,1760170286329,-250.0,0.000274,10]
[390817318,1760170286348,-204.51,0.000274,4]
[390817319,1760170286367,-189.05,0.000274,4]
[390817320,1760170286383,-220.56971332,0.000274,4]
[390817321,1760170286401,-220.56,0.000274,4]
[390817322,1760170286420,-151.00000003,0.00027452,9]
[390817323,1760170286438,-151.0,0.00027452,9]
[390817324,1760170286455,-151.0,0.00027452,9]
[390817325,1760170286472,-209.51351402,0.00027452,9]
[390817326,1760170286490,-151.0,0.00027452,9]
[390817327,1760170286504,-151.0,0.00027452,9]
[390817328,1760170286521,-151.0,0.00027452,9]
[390817329,1760170286537,-729.05520452,0.00027454,2]
[390817330,1760170286551,-222.48677283,0.0002747,7]
[390817331,1760170286565,-150.11,0.00027484,15]
[390817332,1760170286580,-154.84,0.00027488,15]
[390817333,1760170286595,-152.66,0.00027488,15]
[390817334,1760170286609,-150.0,0.00027493,2]
[390817335,1760170286624,-150.14,0.00027493,2]
[390817336,1760170286638,-150.085,0.00027493,2]
[390817337,1760170286652,-1008.948,0.00027493,2]
[390817338,1760170286667,-631.563,0.00027493,2]
[390817339,1760170286682,-2164.153,0.00027493,2]
[390817340,1760170286696,-500.0,0.000275,5]
[390817341,1760170286710,-250.0,0.000275,10]
[390817342,1760170286725,-245.0,0.00027507,9]
[390817343,1760170286739,-151.0,0.00027507,9]
[390817344,1760170286753,-151.0,0.00027507,9]
[390817345,1760170286768,-151.0,0.00027507,9]
[390817346,1760170286782,-151.0,0.00027507,9]
[390817347,1760170286796,-501.53340102,0.00027521,5]
[390817348,1760170286810,-1000.0,0.00027521,5]
[390817349,1760170286823,-1000.0,0.00027521,5]
[390817350,1760170286838,-656.86003574,0.00027521,5]
[390817351,1760170286853,-1000.0,0.00027521,5]
[390817352,1760170286867,-1002.18832237,0.00027521,5]
[390817353,1760170286882,-500.0,0.00027521,5]
[390817354,1760170286896,-1000.0,0.00027521,5]
[390817355,1760170286909,-151.0,0.00027561,9]
[390817356,1760170286924,-151.0,0.00027561,9]
[390817357,1760170286939,-229.5850303,0.00027561,9]
[390817358,1760170286954,-205.81517561,0.00027561,9]
[390817359,1760170286968,-150.11,0.00027584,15]
[390817360,1760170286981,-154.84,0.00027588,15]
[390817361,1760170286995,-152.66,0.00027588,15]
[390817362,1760170287009,-308.220168,0.000276,2]
[390817363,1760170287024,-221.999969,0.000276,2]
[390817364,1760170287038,-250.0,0.000276,10]
[390817365,1760170287052,-2091.0,0.00027613,2]
[390817366,1760170287066,-151.0,0.00027616,9]
[390817367,1760170287082,-151.0,0.00027616,9]
[390817368,1760170287098,-189.0,0.00027621,120]
[390817369,1760170287113,-2093.0,0.00027622,2]
[390817370,1760170287130,-245.0,0.00027671,9]
[390817371,1760170287146,-245.0,0.00027671,9]
[390817372,1760170287161,-8400.27721866,0.00027674,2]
[390817373,1760170287175,-150.11,0.00027684,15]
[390817374,1760170287190,-308.220168,0.00027684,9]
[390817375,1760170287204,-221.999969,0.00027684,9]
[390817376,1760170287220,-154.84,0.00027688,15]
[390817377,1760170287234,-152.66,0.00027688,15]
[390817378,1760170287249,-168.0,0.00027697,7]
[390817379,1760170287263,-250.0,0.000277,10]
[390817380,1760170287278,-2091.0,0.0002772,7]
[390817381,1760170287292,-1000.0,0.00027721,5]
[390817382,1760170287306,-1001.50198284,0.00027721,5]
[390817383,1760170287321,-1000.0,0.00027721,5]
[390817384,1760170287334,-845.36620399,0.00027721,5]
[390817385,1760170287349,-1000.0,0.00027721,5]
[390817386,1760170287366,-1000.0,0.00027721,5]
[390817387,1760170287380,-1000.0,0.00027721,2]
[390817388,1760170287395,-1068.67253914,0.00027721,5]
[390817389,1760170287538,-1000.0,0.00027721,5]
[390817390,1760170287552,-1000.0,0.00027721,5]
[390817391,1760170287561,-1000.0,0.00027721,5]
[390817392,1760170287570,-501.37593705,0.00027721,5]
[390817393,1760170287579,-1000.0,0.00027721,5]
[390817394,1760170287588,-500.0,0.00027721,5]
[390817395,1760170287598,-1000.0,0.00027721,5]
[390817396,1760170287609,-150.11,0.00027784,15]
[390817397,1760170287619,-154.84,0.00027788,15]
[390817398,1760170287629,-152.66,0.00027788,15]
[390817399,1760170287639,-154.0,0.000278,120]
[390817400,1760170287649,-250.0,0.000278,10]
[390817401,1760170287659,-1000.66067143,0.00027821,5]
[390817402,1760170287668,-1259.21610593,0.00027822,2]
[390817403,1760170287677,-308.220168,0.0002783,2]
[390817404,1760170287687,-221.999969,0.0002783,2]
[390817405,1760170287696,-150.11,0.00027884,15]
[390817406,1760170287705,-154.89982455,0.00027888,15]
[390817407,1760170287714,-152.66,0.00027888,15]
[390817408,1760170287727,-250.0,0.000279,10]
[390817409,1760170287737,-1000.0,0.00027921,5]
[390817410,1760170287746,-366.79694638,0.00027921,5]
[390817411,1760170287755,-1000.0,0.00027921,5]
[390817412,1760170287765,-1000.0,0.00027921,5]
[390817413,1760170287775,-250.0,0.00027921,5]
[390817414,1760170287784,-250.0,0.00027921,5]
[390817415,1760170287793,-1002.45008947,0.00027921,5]
[390817416,1760170287802,-1000.0,0.00027921,5]
[390817417,1760170287811,-2091.0,0.0002794,2]
[390817418,1760170287820,-250.0,0.00027945,5]
[390817419,1760170287829,-8400.27721866,0.00027962,2]
[390817420,1760170287838,-864.0,0.00027965,30]
[390817421,1760170287847,-308.220168,0.00027967,9]
[390817422,1760170287856,-221.999969,0.00027967,9]
[390817423,1760170287865,-308.220168,0.00027973,10]
[390817424,1760170287874,-221.999969,0.00027973,10]
[390817425,1760170287884,-150.11,0.00027984,15]
[390817426,1760170287893,-152.66,0.00027988,15]
[390817427,1760170287902,-194.7823746,0.00028,120]
[390817428,1760170287911,-250.0,0.00028,10]
[390817429,1760170287920,-2004.97,0.00028,4]
[390817430,1760170287930,-1000.0,0.00028,3]
[390817431,1760170287939,-308.220168,0.00028061,2]
[390817432,1760170287948,-221.999969,0.00028061,2]
[390817433,1760170287958,-1259.21610596,0.00028061,2]
[390817434,1760170287967,-1001.41868759,0.00028068,5]
[390817435,1760170287979,-1500.0,0.00028068,5]
[390817436,1760170287988,-1253.14146875,0.00028068,5]
[390817437,1760170287997,-506.85177544,0.00028068,5]
[390817438,1760170288006,-150.11,0.00028084,15]
[390817439,1760170288016,-152.66,0.00028088,15]
[390817440,1760170288025,-330.146374,0.000281,10]
[390817441,1760170288035,-150.11,0.00028184,15]
[390817442,1760170288044,-152.66,0.00028188,15]
[390817443,1760170288054,-2609.37557469,0.000282,3]
[390817444,1760170288063,-8763.82,0.00028219,6]
[390817445,1760170288073,-8400.27721866,0.0002825,2]
[390817446,1760170288082,-308.220168,0.00028251,9]
[390817447,1760170288092,-221.999969,0.00028251,9]
[390817448,1760170288101,-1500.0,0.00028268,5]
[390817449,1760170288111,-1500.0,0.00028268,5]
[390817450,1760170288121,-1500.0,0.00028268,5]
[390817451,1760170288134,-1500.0,0.00028268,5]
[390817452,1760170288143,-498.51325855,0.00028268,5]
[390817453,1760170288153,-1500.0,0.00028268,5]
[390817454,1760170288162,-150.11,0.00028284,15]
[390817455,1760170288171,-168.0,0.00028291,2]
[390817456,1760170288182,-308.220168,0.00028292,2]
[390817457,1760170288191,-221.999969,0.00028292,2]
[390817458,1760170288200,-6012.61,0.000283,2]
[390817459,1760170288211,-12742.21,0.000283,2]
[390817460,1760170288222,-200.0,0.00028315,120]
[390817461,1760170288232,-168.0,0.00028344,2]
[390817462,1760170288241,-160.40068245,0.00028347,2]
[390817463,1760170288251,-1000.0,0.00028349,2]
[390817464,1760170288260,-150.11,0.00028384,15]
[390817465,1760170288269,-300.0,0.000284,120]
[390817466,1760170288278,-1500.0,0.00028468,5]
[390817467,1760170288287,-260.54334815,0.00028468,5]
[390817468,1760170288297,-350.0,0.00028468,5]
[390817469,1760170288306,-350.0,0.00028468,5]
[390817470,1760170288315,-1500.0,0.00028468,5]
[390817471,1760170288323,-150.11,0.00028484,15]
[390817472,1760170288333,-350.0,0.00028493,5]
[390817473,1760170288343,-200.0,0.00028498,120]
[390817474,1760170288352,-308.220168,0.00028522,2]
[390817475,1760170288362,-221.999969,0.00028522,2]
[390817476,1760170288371,-2093.0,0.00028528,7]
[390817477,1760170288380,-308.220168,0.00028534,9]
[390817478,1760170288390,-221.999969,0.00028534,9]
[390817479,1760170288399,-8400.27721866,0.00028539,2]
[390817480,1760170288408,-431.14,0.00028547,3]
[390817481,1760170288417,-308.220168,0.0002857,10]
[390817482,1760170288427,-221.999969,0.0002857,10]
[390817483,1760170288436,-150.11,0.00028584,15]
[390817484,1760170288445,-5020.02834909,0.00028599,18]
[390817485,1760170288454,-737.21068788,0.00028599,19]
[390817486,1760170288463,-887.71567513,0.00028616,5]
[390817487,1760170288477,-1507.38604438,0.00028658,2]
[390817488,1760170288486,-150.11,0.00028684,15]
[390817489,1760170288495,-318.0,0.00028691,7]
[390817490,1760170288505,-500.0,0.00028767,60]
[390817491,1760170288514,-500.0,0.00028767,60]
[390817492,1760170288524,-500.0,0.00028767,60]
[390817493,1760170288534,-500.0,0.00028767,60]
[390817494,1760170288543,-500.0,0.00028767,60]
[390817495,1760170288552,-500.0,0.00028767,60]
[390817496,1760170288561,-500.0,0.00028767,60]
[390817497,1760170288570,-500.0,0.00028767,60]
[390817498,1760170288579,-500.0,0.00028767,60]
[390817499,1760170288588,-500.0,0.00028767,60]
[390817500,1760170288597,-500.0,0.00028767,60]
[390817501,1760170288606,-500.0,0.00028767,60]
[390817502,1760170288615,-500.0,0.00028767,60]
[390817503,1760170288624,-500.0,0.00028767,60]
[390817504,1760170288633,-500.0,0.00028767,60]
[390817505,1760170288643,-500.0,0.00028767,60]
[390817506,1760170288652,-500.0,0.00028767,60]
[390817507,1760170288661,-500.0,0.00028767,60]
[390817508,1760170288670,-500.0,0.00028767,60]
[390817509,1760170288679,-500.0,0.00028767,60]
[390817510,1760170288688,-500.0,0.00028767,60]
[390817511,1760170288697,-500.0,0.00028767,60]
[390817512,1760170288706,-242.46144144,0.00028767,60]
[390817513,1760170288716,-150.11,0.00028784,15]
[390817514,1760170288729,-1139.94615298,0.00028816,5]
[390817515,1760170288738,-500.0,0.00028816,5]
[390817516,1760170288749,-1602.6742955,0.00028816,5]
[390817517,1760170288758,-2000.0,0.00028816,5]
[390817518,1760170288768,-506.06976709,0.00028816,5]
[390817519,1760170288778,-168.0,0.00028817,2]
[390817520,1760170288788,-8400.27721866,0.00028827,2]
[390817521,1760170288798,-150.11,0.00028884,15]
[390817522,1760170288807,-168.0,0.00028901,2]
[390817523,1760170288818,-500.0,0.0002892,5]
[390817524,1760170288827,-500.0,0.00028973,5]
[390817525,1760170288837,-168.0,0.00028979,2]
[390817526,1760170288849,-150.11,0.00028984,15]
[390817527,1760170288858,-209.0,0.00029,120]
[390817528,1760170288868,-168.16,0.00029,14]
[390817529,1760170288877,-250000.0,0.00029,7]
[390817530,1760170288886,-189.0,0.00029002,120]
[390817531,1760170288895,-2000.0,0.00029016,5]
[390817532,1760170288904,-450.0,0.00029016,5]
[390817533,1760170288914,-337.54162087,0.00029016,5]
[390817534,1760170288923,-2000.0,0.00029016,5]
[390817535,1760170288933,-168.0,0.00029027,2]
[390817536,1760170288943,-450.0,0.00029041,5]
[390817537,1760170288954,-150.11,0.00029084,15]
[390817538,1760170288963,-8400.27721866,0.00029115,2]
[390817539,1760170288974,-335.84676443,0.0002912,5]
[390817540,1760170288984,-318.0,0.0002915,2]
[390817541,1760170288993,-200.0,0.00029152,120]
[390817542,1760170289002,-308.220168,0.00029167,10]
[390817543,1760170289011,-221.999969,0.00029167,10]
[390817544,1760170289020,-150.11,0.00029184,15]
[390817545,1760170289029,-6012.61,0.000292,2]
[390817546,1760170289039,-12742.21,0.000292,2]
[390817547,1760170289047,-150.11,0.00029284,15]
[390817548,1760170289058,-8763.82,0.00029315,8]
[390817549,1760170289067,-168.0,0.00029322,7]
[390817550,1760170289076,-318.0,0.00029357,2]
[390817551,1760170289085,-505.15323595,0.00029364,5]
[390817552,1760170289095,-150.11,0.00029384,15]
[390817553,1760170289104,-8400.27721866,0.00029404,2]
[390817554,1760170289113,-174.756,0.00029469,2]
[390817555,1760170289124,-150.0,0.00029473,5]
[390817556,1760170289136,-11663.37,0.00029484,11]
[390817557,1760170289145,-20386.48,0.00029484,11]
[390817558,1760170289155,-150.11,0.00029484,15]
[390817559,1760170289164,-372252.41245,0.000295,120]
[390817560,1760170289174,-2609.37557469,0.000295,120]
[390817561,1760170289183,-1501.916373,0.000295,2]
[390817562,1760170289193,-1000.0,0.00029521,5]
[390817563,1760170289202,-308.220168,0.00029562,7]
[390817564,1760170289213,-221.999969,0.00029562,7]
[390817565,1760170289224,-2500.0,0.00029564,5]
[390817566,1760170289233,-550.0,0.00029564,5]
[390817567,1760170289242,-2500.0,0.00029564,5]
[390817568,1760170289252,-150.11,0.00029584,15]
[390817569,1760170289261,-550.0,0.00029589,5]
[390817570,1760170289270,-308.220168,0.00029593,7]
[390817571,1760170289279,-221.999969,0.00029593,7]
[390817572,1760170289289,-308.220168,0.00029615,15]
[390817573,1760170289298,-221.999969,0.00029615,15]
[390817574,1760170289307,-308.220168,0.00029624,7]
[390817575,1760170289316,-221.999969,0.00029624,7]
[390817576,1760170289325,-308.220168,0.00029633,15]
[390817577,1760170289335,-221.999969,0.00029633,15]
[390817578,1760170289443,-652.8211548,0.00029642,24]
[390817579,1760170289455,-308.220168,0.00029651,15]
[390817580,1760170289464,-221.999969,0.00029651,15]
[390817581,1760170289474,-308.220168,0.00029656,7]
[390817582,1760170289483,-221.999969,0.00029656,7]
[390817583,1760170289494,-160.19,0.00029665,2]
[390817584,1760170289504,-160.19,0.00029665,2]
[390817585,1760170289513,-160.19,0.00029665,2]
[390817586,1760170289522,-160.19,0.00029665,2]
[390817587,1760170289531,-160.19,0.00029665,2]
[390817588,1760170289541,-160.19,0.00029665,2]
[390817589,1760170289550,-160.19,0.00029665,2]
[390817590,1760170289559,-160.19,0.00029665,2]
[390817591,1760170289569,-160.19,0.00029665,2]
[390817592,1760170289579,-160.19,0.00029665,2]
[390817593,1760170289588,-308.220168,0.00029669,15]
[390817594,1760170289598,-221.999969,0.00029669,15]
[390817595,1760170289608,-150.0,0.00029673,5]
[390817596,1760170289617,-308.220168,0.00029675,30]
[390817597,1760170289627,-221.999969,0.00029675,30]
[390817598,1760170289636,-308.220168,0.00029677,20]
[390817599,1760170289645,-221.999969,0.00029677,20]
[390817600,1760170289655,-500.0,0.00029679,9]
[390817601,1760170289664,-500.0,0.00029679,9]
[390817602,1760170289674,-500.0,0.0002968,9]
[390817603,1760170289683,-500.0,0.0002968,9]
[390817604,1760170289693,-12028.99345982,0.00029681,2]
[390817605,1760170289702,-500.0,0.00029681,9]
[390817606,1760170289711,-500.0,0.00029681,9]
[390817607,1760170289720,-500.0,0.00029681,9]
[390817608,1760170289731,-504.47444573,0.00029681,9]
[390817609,1760170289741,-308.220168,0.00029681,20]
[390817610,1760170289751,-221.999969,0.00029681,20]
[390817611,1760170289759,-150.11,0.00029684,15]
[390817612,1760170289769,-308.220168,0.00029684,20]
[390817613,1760170289778,-221.999969,0.00029684,20]
[390817614,1760170289788,-308.220168,0.00029687,7]
[390817615,1760170289797,-308.220168,0.00029687,15]
[390817616,1760170289806,-221.999969,0.00029687,7]